[Event "Titled Tuesday Blitz May 16 Late 2023"]
[White "Matinian, Nikita"]
[Black "Guz, Ari"]
[WhiteFideId "24129100"]
[BlackFideId "2825759"]
[WhiteElo "2422"]
[BlackElo "2205"]
[Result "0-1"]
[Round "09"]
[TimeControl "180+2"]
[Date "2023.05.16"]
[WhiteClock "0:00:00"]
[BlackClock "0:00:14"]

1. e4 {[%clk 0:02:57]}  Nf6 {[%clk 0:02:44]} 2. e5 {[%clk 0:02:57]}  Nd5 {[%clk 0:02:45]} 3. d4 {[%clk 0:02:57]}  d6 {[%clk 0:02:45]} 4. Nf3 {[%clk 0:02:58]}  Bg4 {[%clk 0:02:45]} 5. Be2 {[%clk 0:02:55]}  e6 {[%clk 0:02:44]} 6. O-O {[%clk 0:02:54]}  Nc6 {[%clk 0:02:41]} 7. Nbd2 {[%clk 0:02:53]}  Be7 {[%clk 0:02:38]} 8. h3 {[%clk 0:02:52]}  Bh5 {[%clk 0:02:38]} 9. exd6 {[%clk 0:02:51]}  cxd6 {[%clk 0:02:36]} 10. Ne4 {[%clk 0:02:38]}  O-O {[%clk 0:02:34]} 11. c3 {[%clk 0:02:38]}  Bg6 {[%clk 0:02:31]} 12. Ng3 {[%clk 0:02:36]}  e5 {[%clk 0:02:28]} 13. Bc4 {[%clk 0:02:29]}  Nb6 {[%clk 0:02:22]} 14. Bb3 {[%clk 0:02:29]}  e4 {[%clk 0:02:17]} 15. Nh2 {[%clk 0:02:28]}  d5 {[%clk 0:02:16]} 16. f4 {[%clk 0:02:28]}  exf3 {[%clk 0:01:53]} 17. Nxf3 {[%clk 0:02:28]}  Bd6 {[%clk 0:01:53]} 18. Ne2 {[%clk 0:02:20]}  Be4 {[%clk 0:01:46]} 19. Ng5 {[%clk 0:02:16]}  Bg6 {[%clk 0:01:42]} 20. Nf3 {[%clk 0:02:03]}  Be4 {[%clk 0:01:40]} 21. Ng5 {[%clk 0:02:03]}  Bg6 {[%clk 0:01:40]} 22. a4 {[%clk 0:01:30]}  Na5 {[%clk 0:01:21]} 23. Bc2 {[%clk 0:01:27]}  Nac4 {[%clk 0:01:19]} 24. a5 {[%clk 0:01:23]}  Nd7 {[%clk 0:01:17]} 25. a6 {[%clk 0:01:24]}  bxa6 {[%clk 0:01:12]} 26. Rxa6 {[%clk 0:01:22]}  Ndb6 {[%clk 0:01:10]} 27. Bxg6 {[%clk 0:01:20]}  hxg6 {[%clk 0:01:09]} 28. b3 {[%clk 0:01:11]}  Na3 {[%clk 0:00:53]} 29. Rxf7 {[%clk 0:01:02]}  Rxf7 {[%clk 0:00:44]} 30. Nxf7 {[%clk 0:01:03]}  Kxf7 {[%clk 0:00:45]} 31. Bxa3 {[%clk 0:01:03]}  Bxa3 {[%clk 0:00:45]} 32. Rxa3 {[%clk 0:01:03]}  Qe7 {[%clk 0:00:46]} 33. Ra2 {[%clk 0:00:57]}  Qe3+ {[%clk 0:00:46]} 34. Kh2 {[%clk 0:00:55]}  Kg8 {[%clk 0:00:46]} 35. Qd2 {[%clk 0:00:52]}  Qe4 {[%clk 0:00:41]} 36. Ng3 {[%clk 0:00:50]}  Qe6 {[%clk 0:00:38]} 37. Qg5 {[%clk 0:00:45]}  Rc8 {[%clk 0:00:36]} 38. Rxa7 {[%clk 0:00:43]}  Rxc3 {[%clk 0:00:36]} 39. Re7 {[%clk 0:00:43]}  Qf6 {[%clk 0:00:31]} 40. Re8+ {[%clk 0:00:42]}  Kf7 {[%clk 0:00:28]} 41. Qxf6+ {[%clk 0:00:28]}  gxf6 {[%clk 0:00:28]} 42. Rb8 {[%clk 0:00:28]}  Rxb3 {[%clk 0:00:28]} 43. Rb7+ {[%clk 0:00:28]}  Ke6 {[%clk 0:00:26]} 44. Ne2 {[%clk 0:00:28]}  g5 {[%clk 0:00:27]} 45. Nc1 {[%clk 0:00:22]}  Rb1 {[%clk 0:00:17]} 46. Nd3 {[%clk 0:00:22]}  Kf5 {[%clk 0:00:16]} 47. Nc5 {[%clk 0:00:17]}  Rb2 {[%clk 0:00:16]} 48. Nd3 {[%clk 0:00:10]}  Rb3 {[%clk 0:00:15]} 49. Nc5 {[%clk 0:00:08]}  Rb2 {[%clk 0:00:15]} 50. Na6 {[%clk 0:00:05]}  Nc4 {[%clk 0:00:15]} 51. Rd7 {[%clk 0:00:05]}  Ne3 {[%clk 0:00:15]} 52. Kg3 {[%clk 0:00:03]}  Nxg2 {[%clk 0:00:13]} 53. Rxd5+ {[%clk 0:00:02]}  Kg6 {[%clk 0:00:14]} 54. Nc5 {[%clk 0:00:02]}  Nf4 {[%clk 0:00:15]} 55. Rd8 {[%clk 0:00:02]}  Rg2+ {[%clk 0:00:14]} 56. Kf3 {[%clk 0:00:02]}  Rh2 {[%clk 0:00:15]} 57. d5 {[%clk 0:00:02]}  Rxh3+ {[%clk 0:00:15]} 58. Kf2 {[%clk 0:00:01]}  Rc3 {[%clk 0:00:15]} 59. Ne4 {[%clk 0:00:00]}  Rd3 {[%clk 0:00:14]} 0-1


[Site "https://www.chess.com"]

[Event "Titled Tuesday Blitz May 16 Late 2023"]
[White "Schnaider, Ilan"]
[Black "Pakleza, Zbigniew"]
[WhiteFideId "169013"]
[BlackFideId "1119290"]
[WhiteElo "2224"]
[BlackElo "2410"]
[Result "1/2-1/2"]
[Round "09"]
[TimeControl "180+2"]
[Date "2023.05.16"]
[WhiteClock "0:00:03"]
[BlackClock "0:00:03"]

1. e4 {[%clk 0:02:56]}  d6 {[%clk 0:02:59]} 2. d4 {[%clk 0:02:55]}  Nf6 {[%clk 0:02:59]} 3. Nc3 {[%clk 0:02:54]}  c6 {[%clk 0:03:00]} 4. f4 {[%clk 0:02:53]}  Qb6 {[%clk 0:03:00]} 5. Nf3 {[%clk 0:02:53]}  Bg4 {[%clk 0:02:59]} 6. Be2 {[%clk 0:02:50]}  Bxf3 {[%clk 0:02:59]} 7. Bxf3 {[%clk 0:02:51]}  e5 {[%clk 0:02:58]} 8. Be3 {[%clk 0:02:47]}  Qxb2 {[%clk 0:02:57]} 9. Ne2 {[%clk 0:02:44]}  Qa3 {[%clk 0:02:56]} 10. Qd2 {[%clk 0:02:39]}  Nbd7 {[%clk 0:02:53]} 11. O-O {[%clk 0:02:37]}  Be7 {[%clk 0:02:37]} 12. Rab1 {[%clk 0:02:35]}  b5 {[%clk 0:02:26]} 13. Ng3 {[%clk 0:02:22]}  g6 {[%clk 0:02:15]} 14. f5 {[%clk 0:02:09]}  Nb6 {[%clk 0:01:46]} 15. Bg5 {[%clk 0:02:00]}  Nc4 {[%clk 0:01:42]} 16. Qf2 {[%clk 0:01:59]}  Ng4 {[%clk 0:01:15]} 17. Bxg4 {[%clk 0:01:27]}  Bxg5 {[%clk 0:01:14]} 18. Rb3 {[%clk 0:01:16]}  Be3 {[%clk 0:00:58]} 19. Qxe3 {[%clk 0:01:16]}  Nxe3 {[%clk 0:00:54]} 20. Rxa3 {[%clk 0:01:17]}  Nxg4 {[%clk 0:00:54]} 21. h3 {[%clk 0:01:12]}  Nh6 {[%clk 0:00:44]} 22. dxe5 {[%clk 0:01:09]}  dxe5 {[%clk 0:00:45]} 23. Rc3 {[%clk 0:01:09]}  Kd7 {[%clk 0:00:34]} 24. fxg6 {[%clk 0:00:58]}  fxg6 {[%clk 0:00:32]} 25. Rf6 {[%clk 0:00:58]}  Rac8 {[%clk 0:00:22]} 26. Rc5 {[%clk 0:00:40]}  Rhf8 {[%clk 0:00:18]} 27. Rcxc6 {[%clk 0:00:22]}  Rxc6 {[%clk 0:00:16]} 28. Rxf8 {[%clk 0:00:23]}  Rxc2 {[%clk 0:00:17]} 29. Rh8 {[%clk 0:00:22]}  Nf7 {[%clk 0:00:16]} 30. Rxh7 {[%clk 0:00:23]}  Ke6 {[%clk 0:00:16]} 31. h4 {[%clk 0:00:20]}  Rxa2 {[%clk 0:00:12]} 32. Rh6 {[%clk 0:00:20]}  b4 {[%clk 0:00:06]} 33. Rxg6+ {[%clk 0:00:20]}  Kd7 {[%clk 0:00:06]} 34. Rg7 {[%clk 0:00:19]}  Ke8 {[%clk 0:00:02]} 35. Rg8+ {[%clk 0:00:16]}  Kd7 {[%clk 0:00:03]} 36. Rg7 {[%clk 0:00:16]}  b3 {[%clk 0:00:02]} 37. Rxf7+ {[%clk 0:00:16]}  Kc6 {[%clk 0:00:03]} 38. Nf1 {[%clk 0:00:10]}  a5 {[%clk 0:00:02]} 39. h5 {[%clk 0:00:09]}  Ra1 {[%clk 0:00:02]} 40. Rf2 {[%clk 0:00:08]}  a4 {[%clk 0:00:02]} 41. h6 {[%clk 0:00:09]}  a3 {[%clk 0:00:01]} 42. h7 {[%clk 0:00:09]}  b2 {[%clk 0:00:01]} 43. h8=Q {[%clk 0:00:10]}  b1=Q {[%clk 0:00:02]} 44. Qxe5 {[%clk 0:00:10]}  Qb6 {[%clk 0:00:01]} 45. Qd5+ {[%clk 0:00:08]}  Kc7 {[%clk 0:00:02]} 46. Qe5+ {[%clk 0:00:04]}  Kb7 {[%clk 0:00:02]} 47. Qd5+ {[%clk 0:00:03]}  Ka7 {[%clk 0:00:02]} 48. Qd7+ {[%clk 0:00:03]}  Ka6 {[%clk 0:00:01]} 49. Qa4+ {[%clk 0:00:03]}  Kb7 {[%clk 0:00:02]} 50. Qd7+ {[%clk 0:00:04]}  Ka6 {[%clk 0:00:03]} 51. Qd3+ {[%clk 0:00:05]}  Ka7 {[%clk 0:00:03]} 52. Qd7+ {[%clk 0:00:03]}  Ka6 {[%clk 0:00:03]} 1/2-1/2


[Site "https://www.chess.com"]

[Event "Titled Tuesday Blitz May 16 Late 2023"]
[White "TimGrutter03"]
[Black "Makridis, Dimitrios"]
[BlackFideId "25864475"]
[WhiteElo "2639"]
[BlackElo "2277"]
[Result "0-1"]
[Round "09"]
[TimeControl "180+2"]
[Date "2023.05.16"]
[WhiteClock "0:00:02"]
[BlackClock "0:00:20"]

1. e4 {[%clk 0:03:00]}  c5 {[%clk 0:02:27]} 2. Nf3 {[%clk 0:03:00]}  d6 {[%clk 0:02:26]} 3. d4 {[%clk 0:03:00]}  cxd4 {[%clk 0:02:27]} 4. Nxd4 {[%clk 0:03:01]}  Nf6 {[%clk 0:02:27]} 5. Nc3 {[%clk 0:03:01]}  Nc6 {[%clk 0:02:27]} 6. g3 {[%clk 0:03:00]}  g6 {[%clk 0:02:24]} 7. Nde2 {[%clk 0:03:00]}  Bg7 {[%clk 0:02:23]} 8. Bg2 {[%clk 0:03:00]}  O-O {[%clk 0:02:23]} 9. O-O {[%clk 0:03:01]}  Bd7 {[%clk 0:02:23]} 10. h3 {[%clk 0:02:58]}  Rc8 {[%clk 0:02:22]} 11. Nf4 {[%clk 0:02:58]}  Ne5 {[%clk 0:02:21]} 12. Ncd5 {[%clk 0:02:56]}  Nxd5 {[%clk 0:02:18]} 13. Nxd5 {[%clk 0:02:57]}  b5 {[%clk 0:02:17]} 14. c3 {[%clk 0:02:43]}  a5 {[%clk 0:02:16]} 15. Bg5 {[%clk 0:02:28]}  Nc6 {[%clk 0:02:08]} 16. Qe2 {[%clk 0:02:15]}  h6 {[%clk 0:02:06]} 17. Be3 {[%clk 0:02:11]}  b4 {[%clk 0:02:06]} 18. cxb4 {[%clk 0:02:03]}  Nxb4 {[%clk 0:02:06]} 19. Bb6 {[%clk 0:01:59]}  Qe8 {[%clk 0:02:05]} 20. Nc7 {[%clk 0:01:52]}  Rxc7 {[%clk 0:02:03]} 21. Bxc7 {[%clk 0:01:52]}  Bb5 {[%clk 0:02:03]} 22. Qd2 {[%clk 0:01:46]}  Bxf1 {[%clk 0:02:02]} 23. Rxf1 {[%clk 0:01:36]}  Qb5 {[%clk 0:01:55]} 24. a3 {[%clk 0:01:11]}  Nd3 {[%clk 0:01:24]} 25. Bxa5 {[%clk 0:01:05]}  Nxb2 {[%clk 0:01:19]} 26. Rb1 {[%clk 0:00:56]}  Qe5 {[%clk 0:01:04]} 27. Bb4 {[%clk 0:00:40]}  Na4 {[%clk 0:00:59]} 28. Qc2 {[%clk 0:00:35]}  Nc5 {[%clk 0:00:57]} 29. Rc1 {[%clk 0:00:26]}  Rc8 {[%clk 0:00:49]} 30. Qc4 {[%clk 0:00:20]}  Rc7 {[%clk 0:00:39]} 31. Bc3 {[%clk 0:00:19]}  Qg5 {[%clk 0:00:32]} 32. Bxg7 {[%clk 0:00:19]}  Ne6 {[%clk 0:00:31]} 33. Qxc7 {[%clk 0:00:14]}  Nxc7 {[%clk 0:00:30]} 34. Rxc7 {[%clk 0:00:15]}  Kxg7 {[%clk 0:00:30]} 35. a4 {[%clk 0:00:11]}  Kf6 {[%clk 0:00:25]} 36. Bf1 {[%clk 0:00:07]}  Qa5 {[%clk 0:00:24]} 37. Rc4 {[%clk 0:00:04]}  h5 {[%clk 0:00:24]} 38. Kg2 {[%clk 0:00:03]}  h4 {[%clk 0:00:24]} 39. g4 {[%clk 0:00:02]}  d5 {[%clk 0:00:24]} 40. exd5 {[%clk 0:00:01]}  Qxd5+ {[%clk 0:00:25]} 41. Kg1 {[%clk 0:00:02]}  g5 {[%clk 0:00:21]} 42. Rc3 {[%clk 0:00:02]}  e6 {[%clk 0:00:20]} 43. Bb5 {[%clk 0:00:02]}  Qd1+ {[%clk 0:00:20]} 44. Kg2 {[%clk 0:00:02]}  Kg7 {[%clk 0:00:19]} 45. Re3 {[%clk 0:00:02]}  Qd5+ {[%clk 0:00:19]} 46. Kg1 {[%clk 0:00:02]}  f5 {[%clk 0:00:19]} 47. gxf5 {[%clk 0:00:02]}  exf5 {[%clk 0:00:20]} 48. Re7+ {[%clk 0:00:02]}  Kf6 {[%clk 0:00:21]} 49. Re8 {[%clk 0:00:02]}  g4 {[%clk 0:00:20]} 50. Rf8+ {[%clk 0:00:03]}  Kg5 {[%clk 0:00:20]} 51. hxg4 {[%clk 0:00:02]}  fxg4 {[%clk 0:00:20]} 52. Re8 {[%clk 0:00:02]}  h3 {[%clk 0:00:20]} 53. Rf8 {[%clk 0:00:02]}  Qg2# {[%clk 0:00:20]} 0-1


[Site "https://www.chess.com"]

[Event "Titled Tuesday Blitz May 16 Late 2023"]
[White "Piesik, Piotr"]
[Black "Smirnov, Pavel"]
[WhiteFideId "1136194"]
[BlackFideId "4123425"]
[WhiteElo "2299"]
[BlackElo "2520"]
[Result "0-1"]
[Round "09"]
[TimeControl "180+2"]
[Date "2023.05.16"]
[WhiteClock "0:00:31"]
[BlackClock "0:01:43"]

1. Nf3 {[%clk 0:03:00]}  Nf6 {[%clk 0:02:59]} 2. g3 {[%clk 0:03:01]}  d5 {[%clk 0:03:00]} 3. Bg2 {[%clk 0:03:01]}  e6 {[%clk 0:03:00]} 4. O-O {[%clk 0:03:02]}  Be7 {[%clk 0:03:01]} 5. d3 {[%clk 0:03:02]}  O-O {[%clk 0:03:02]} 6. Nbd2 {[%clk 0:03:03]}  c5 {[%clk 0:03:03]} 7. e4 {[%clk 0:03:04]}  Nc6 {[%clk 0:03:04]} 8. Re1 {[%clk 0:03:03]}  dxe4 {[%clk 0:03:04]} 9. dxe4 {[%clk 0:03:03]}  e5 {[%clk 0:03:05]} 10. c3 {[%clk 0:03:03]}  Qc7 {[%clk 0:03:06]} 11. Qc2 {[%clk 0:03:03]}  h6 {[%clk 0:03:05]} 12. Nc4 {[%clk 0:03:03]}  Be6 {[%clk 0:03:05]} 13. Ne3 {[%clk 0:02:59]}  c4 {[%clk 0:03:06]} 14. Nh4 {[%clk 0:02:58]}  Rfd8 {[%clk 0:03:06]} 15. Nhf5 {[%clk 0:02:55]}  Bf8 {[%clk 0:03:06]} 16. Nd5 {[%clk 0:02:46]}  Nxd5 {[%clk 0:03:03]} 17. exd5 {[%clk 0:02:46]}  Bxd5 {[%clk 0:03:04]} 18. Bxd5 {[%clk 0:02:46]}  Rxd5 {[%clk 0:03:05]} 19. Qe4 {[%clk 0:02:46]}  Rc5 {[%clk 0:02:28]} 20. Be3 {[%clk 0:02:45]}  Rb5 {[%clk 0:02:28]} 21. Re2 {[%clk 0:02:28]}  Ne7 {[%clk 0:02:21]} 22. Rd1 {[%clk 0:02:15]}  Nxf5 {[%clk 0:02:17]} 23. Qxf5 {[%clk 0:02:15]}  g6 {[%clk 0:02:18]} 24. Qh3 {[%clk 0:02:08]}  h5 {[%clk 0:02:19]} 25. Rd7 {[%clk 0:02:05]}  Qc6 {[%clk 0:02:20]} 26. Red2 {[%clk 0:01:58]}  f5 {[%clk 0:02:18]} 27. Bh6 {[%clk 0:01:39]}  Rxb2 {[%clk 0:02:09]} 28. Bxf8 {[%clk 0:01:09]}  Rb1+ {[%clk 0:02:09]} 29. Rd1 {[%clk 0:01:08]}  Qxd7 {[%clk 0:02:09]} 30. Rxb1 {[%clk 0:01:06]}  Rxf8 {[%clk 0:02:10]} 31. Qh4 {[%clk 0:01:02]}  e4 {[%clk 0:02:07]} 32. Qg5 {[%clk 0:00:59]}  Kg7 {[%clk 0:02:06]} 33. h4 {[%clk 0:00:53]}  b6 {[%clk 0:02:06]} 34. a4 {[%clk 0:00:51]}  Qxa4 {[%clk 0:01:59]} 35. Qe7+ {[%clk 0:00:49]}  Rf7 {[%clk 0:01:59]} 36. Qe5+ {[%clk 0:00:50]}  Kh7 {[%clk 0:02:00]} 37. Qe6 {[%clk 0:00:45]}  Qd7 {[%clk 0:01:52]} 38. Qxc4 {[%clk 0:00:44]}  Re7 {[%clk 0:01:53]} 39. Qb3 {[%clk 0:00:42]}  e3 {[%clk 0:01:52]} 40. Rd1 {[%clk 0:00:42]}  e2 {[%clk 0:01:50]} 41. Re1 {[%clk 0:00:39]}  Qd2 {[%clk 0:01:49]} 42. Qb1 {[%clk 0:00:38]}  Rc7 {[%clk 0:01:43]} 43. Qa1 {[%clk 0:00:32]}  Qxc3 {[%clk 0:01:41]} 44. Qxc3 {[%clk 0:00:32]}  Rxc3 {[%clk 0:01:41]} 45. Rxe2 {[%clk 0:00:33]}  Rc7 {[%clk 0:01:41]} 46. Kg2 {[%clk 0:00:31]}  Rb7 {[%clk 0:01:42]} 47. Kf3 {[%clk 0:00:30]}  b5 {[%clk 0:01:42]} 48. Kf4 {[%clk 0:00:31]}  b4 {[%clk 0:01:43]} 49. Kg5 {[%clk 0:00:31]}  b3 {[%clk 0:01:43]} 50. Re6 {[%clk 0:00:31]}  b2 {[%clk 0:01:42]} 51. Rxg6 {[%clk 0:00:32]}  b1=Q {[%clk 0:01:42]} 52. Rh6+ {[%clk 0:00:32]}  Kg8 {[%clk 0:01:43]} 53. Rg6+ {[%clk 0:00:31]}  Kf8 {[%clk 0:01:43]} 0-1


[Site "https://www.chess.com"]

[Event "Titled Tuesday Blitz May 16 Late 2023"]
[White "Averjanov, Alexey"]
[Black "cryptoguru02"]
[WhiteFideId "14109867"]
[WhiteElo "2781"]
[BlackElo "2624"]
[Result "1-0"]
[Round "09"]
[TimeControl "180+2"]
[Date "2023.05.16"]
[WhiteClock "0:02:28"]
[BlackClock "0:01:51"]

1. d4 {[%clk 0:03:00]}  d5 {[%clk 0:02:59]} 2. c4 {[%clk 0:03:01]}  c6 {[%clk 0:02:59]} 3. e3 {[%clk 0:03:01]}  Nf6 {[%clk 0:02:55]} 4. Bd3 {[%clk 0:03:01]}  e6 {[%clk 0:02:47]} 5. Nd2 {[%clk 0:03:01]}  b6 {[%clk 0:02:46]} 6. Ngf3 {[%clk 0:03:01]}  Bb7 {[%clk 0:02:46]} 7. O-O {[%clk 0:03:01]}  Nbd7 {[%clk 0:02:46]} 8. Qe2 {[%clk 0:03:02]}  Be7 {[%clk 0:02:44]} 9. e4 {[%clk 0:03:02]}  dxe4 {[%clk 0:02:43]} 10. Nxe4 {[%clk 0:03:03]}  O-O {[%clk 0:02:42]} 11. Rd1 {[%clk 0:03:01]}  Qc7 {[%clk 0:02:39]} 12. Bg5 {[%clk 0:03:01]}  c5 {[%clk 0:02:36]} 13. dxc5 {[%clk 0:02:57]}  Nxc5 {[%clk 0:02:29]} 14. Nxc5 {[%clk 0:02:51]}  Qxc5 {[%clk 0:02:21]} 15. Ne5 {[%clk 0:02:46]}  Rfd8 {[%clk 0:02:17]} 16. Bxf6 {[%clk 0:02:41]}  Bxf6 {[%clk 0:02:16]} 17. Bxh7+ {[%clk 0:02:41]}  Kf8 {[%clk 0:02:06]} 18. Nd7+ {[%clk 0:02:30]}  Rxd7 {[%clk 0:02:01]} 19. Rxd7 {[%clk 0:02:31]}  Qc6 {[%clk 0:01:57]} 20. Rxb7 {[%clk 0:02:28]}  Qxb7 {[%clk 0:01:51]} 21. Be4 {[%clk 0:02:28]} 1-0


[Site "https://www.chess.com"]

[Event "Titled Tuesday Blitz May 16 Late 2023"]
[White "Wagner, Dennis"]
[Black "Spitzl, Vinzent"]
[WhiteFideId "24650684"]
[BlackFideId "12901253"]
[WhiteElo "2478"]
[BlackElo "2225"]
[Result "1/2-1/2"]
[Round "09"]
[TimeControl "180+2"]
[Date "2023.05.16"]
[WhiteClock "0:00:09"]
[BlackClock "0:00:16"]

1. e4 {[%clk 0:02:53]}  c5 {[%clk 0:02:58]} 2. Nf3 {[%clk 0:02:54]}  d6 {[%clk 0:02:57]} 3. Bb5+ {[%clk 0:02:54]}  Nc6 {[%clk 0:02:56]} 4. O-O {[%clk 0:02:51]}  Bd7 {[%clk 0:02:56]} 5. c3 {[%clk 0:02:51]}  a6 {[%clk 0:02:56]} 6. Bxc6 {[%clk 0:02:52]}  Bxc6 {[%clk 0:02:57]} 7. Re1 {[%clk 0:02:53]}  g6 {[%clk 0:02:54]} 8. d4 {[%clk 0:02:53]}  cxd4 {[%clk 0:02:48]} 9. cxd4 {[%clk 0:02:54]}  Bg7 {[%clk 0:02:48]} 10. Nc3 {[%clk 0:02:54]}  Nf6 {[%clk 0:02:47]} 11. d5 {[%clk 0:02:53]}  Bd7 {[%clk 0:02:45]} 12. Be3 {[%clk 0:02:47]}  O-O {[%clk 0:02:44]} 13. Rc1 {[%clk 0:02:45]}  Rc8 {[%clk 0:02:39]} 14. h3 {[%clk 0:02:44]}  Qa5 {[%clk 0:02:33]} 15. Qb3 {[%clk 0:02:29]}  Bb5 {[%clk 0:02:27]} 16. a4 {[%clk 0:01:36]}  Bc4 {[%clk 0:02:14]} 17. Qxb7 {[%clk 0:01:35]}  Rc7 {[%clk 0:02:02]} 18. Qb6 {[%clk 0:01:35]}  Qxb6 {[%clk 0:01:54]} 19. Bxb6 {[%clk 0:01:36]}  Rb7 {[%clk 0:01:54]} 20. a5 {[%clk 0:01:37]}  Nd7 {[%clk 0:01:53]} 21. Nd2 {[%clk 0:01:16]}  Nxb6 {[%clk 0:01:30]} 22. axb6 {[%clk 0:01:16]}  Bb5 {[%clk 0:01:30]} 23. Nxb5 {[%clk 0:01:13]}  axb5 {[%clk 0:01:30]} 24. Rc6 {[%clk 0:01:06]}  Rfb8 {[%clk 0:01:14]} 25. b4 {[%clk 0:00:51]}  Rxb6 {[%clk 0:01:09]} 26. Rec1 {[%clk 0:00:50]}  Bb2 {[%clk 0:00:55]} 27. Rxb6 {[%clk 0:00:21]}  Rxb6 {[%clk 0:00:54]} 28. Rb1 {[%clk 0:00:15]}  Bc3 {[%clk 0:00:53]} 29. Nf3 {[%clk 0:00:13]}  Ra6 {[%clk 0:00:50]} 30. Rb3 {[%clk 0:00:13]}  Bf6 {[%clk 0:00:45]} 31. g3 {[%clk 0:00:10]}  Ra2 {[%clk 0:00:40]} 32. Kg2 {[%clk 0:00:10]}  h5 {[%clk 0:00:39]} 33. g4 {[%clk 0:00:09]}  hxg4 {[%clk 0:00:38]} 34. hxg4 {[%clk 0:00:10]}  Rb2 {[%clk 0:00:35]} 35. Rxb2 {[%clk 0:00:09]}  Bxb2 {[%clk 0:00:36]} 36. Ne1 {[%clk 0:00:10]}  Bc3 {[%clk 0:00:28]} 37. Nd3 {[%clk 0:00:11]}  g5 {[%clk 0:00:26]} 38. f3 {[%clk 0:00:10]}  Kg7 {[%clk 0:00:26]} 39. Kf2 {[%clk 0:00:10]}  e6 {[%clk 0:00:24]} 40. dxe6 {[%clk 0:00:10]}  fxe6 {[%clk 0:00:24]} 41. Ke3 {[%clk 0:00:09]}  Kf6 {[%clk 0:00:22]} 42. f4 {[%clk 0:00:10]}  gxf4+ {[%clk 0:00:19]} 43. Kxf4 {[%clk 0:00:10]}  e5+ {[%clk 0:00:19]} 44. Kf3 {[%clk 0:00:09]}  Kg5 {[%clk 0:00:19]} 45. Kg3 {[%clk 0:00:10]}  Bd2 {[%clk 0:00:17]} 46. Kh3 {[%clk 0:00:09]}  Bc3 {[%clk 0:00:16]} 47. Kg3 {[%clk 0:00:09]}  Bd2 {[%clk 0:00:16]} 48. Kh3 {[%clk 0:00:09]}  Bc3 {[%clk 0:00:16]} 49. Kg3 {[%clk 0:00:09]} 1/2-1/2


[Site "https://www.chess.com"]

[Event "Titled Tuesday Blitz May 16 Late 2023"]
[White "Kokoszczynski, Jan"]
[Black "Djokic, Mihailo"]
[WhiteFideId "1174460"]
[BlackFideId "976440"]
[WhiteElo "2139"]
[BlackElo "2294"]
[Result "1-0"]
[Round "09"]
[TimeControl "180+2"]
[Date "2023.05.16"]
[WhiteClock "0:00:07"]
[BlackClock "0:00:05"]

1. d4 {[%clk 0:03:00]}  Nf6 {[%clk 0:02:59]} 2. c4 {[%clk 0:03:01]}  g6 {[%clk 0:03:00]} 3. Nc3 {[%clk 0:03:00]}  Bg7 {[%clk 0:02:54]} 4. e4 {[%clk 0:02:58]}  d6 {[%clk 0:02:45]} 5. h3 {[%clk 0:02:55]}  O-O {[%clk 0:02:45]} 6. Nf3 {[%clk 0:02:54]}  Na6 {[%clk 0:02:46]} 7. Be3 {[%clk 0:02:54]}  e5 {[%clk 0:02:45]} 8. d5 {[%clk 0:02:53]}  Nc5 {[%clk 0:02:45]} 9. Nd2 {[%clk 0:02:54]}  a5 {[%clk 0:02:44]} 10. g4 {[%clk 0:02:47]}  c6 {[%clk 0:02:39]} 11. Qf3 {[%clk 0:02:22]}  a4 {[%clk 0:02:33]} 12. Be2 {[%clk 0:02:01]}  Qa5 {[%clk 0:02:30]} 13. a3 {[%clk 0:01:56]}  Bd7 {[%clk 0:02:27]} 14. O-O {[%clk 0:01:42]}  h5 {[%clk 0:02:27]} 15. g5 {[%clk 0:01:41]}  Nh7 {[%clk 0:02:26]} 16. Qg3 {[%clk 0:01:21]}  Be8 {[%clk 0:01:42]} 17. f3 {[%clk 0:01:03]}  f5 {[%clk 0:01:38]} 18. Qg2 {[%clk 0:01:03]}  f4 {[%clk 0:01:33]} 19. Bf2 {[%clk 0:01:02]}  Bd7 {[%clk 0:01:33]} 20. h4 {[%clk 0:00:55]}  Rfb8 {[%clk 0:01:31]} 21. Rfd1 {[%clk 0:00:48]}  Bf8 {[%clk 0:01:30]} 22. Kh2 {[%clk 0:00:40]}  Be7 {[%clk 0:01:30]} 23. Qg1 {[%clk 0:00:39]}  Na6 {[%clk 0:01:22]} 24. Bb6 {[%clk 0:00:35]}  Qxb6 {[%clk 0:01:06]} 25. Qxb6 {[%clk 0:00:34]}  c5 {[%clk 0:01:06]} 26. Bf1 {[%clk 0:00:17]}  Nf8 {[%clk 0:00:38]} 27. Bh3 {[%clk 0:00:17]}  Be8 {[%clk 0:00:39]} 28. Be6+ {[%clk 0:00:15]}  Kg7 {[%clk 0:00:39]} 29. Nb5 {[%clk 0:00:11]}  Nxe6 {[%clk 0:00:28]} 30. dxe6 {[%clk 0:00:10]}  Bc6 {[%clk 0:00:28]} 31. Qa5 {[%clk 0:00:05]}  b6 {[%clk 0:00:18]} 32. Qc3 {[%clk 0:00:05]}  Rd8 {[%clk 0:00:19]} 33. Nb1 {[%clk 0:00:05]}  Rab8 {[%clk 0:00:14]} 34. Qd2 {[%clk 0:00:05]}  Rb7 {[%clk 0:00:14]} 35. N1c3 {[%clk 0:00:06]}  Bf8 {[%clk 0:00:13]} 36. Nxa4 {[%clk 0:00:06]}  Nb8 {[%clk 0:00:13]} 37. Nac3 {[%clk 0:00:06]}  Re7 {[%clk 0:00:12]} 38. Nd5 {[%clk 0:00:07]}  Rxe6 {[%clk 0:00:12]} 39. Nbc7 {[%clk 0:00:06]}  Bxd5 {[%clk 0:00:09]} 40. cxd5 {[%clk 0:00:06]}  Re7 {[%clk 0:00:10]} 41. Ne6+ {[%clk 0:00:06]}  Rxe6 {[%clk 0:00:10]} 42. dxe6 {[%clk 0:00:07]}  Nc6 {[%clk 0:00:10]} 43. Qd5 {[%clk 0:00:06]}  Nd4 {[%clk 0:00:11]} 44. Kg2 {[%clk 0:00:06]}  Nc2 {[%clk 0:00:09]} 45. Re1 {[%clk 0:00:02]}  Be7 {[%clk 0:00:07]} 46. Rac1 {[%clk 0:00:03]}  Nd4 {[%clk 0:00:07]} 47. Rcd1 {[%clk 0:00:03]}  Kf8 {[%clk 0:00:01]} 48. Rxd4 {[%clk 0:00:03]}  exd4 {[%clk 0:00:01]} 49. Rc1 {[%clk 0:00:04]}  Re8 {[%clk 0:00:01]} 50. a4 {[%clk 0:00:04]}  Rd8 {[%clk 0:00:01]} 51. b3 {[%clk 0:00:05]}  Rb8 {[%clk 0:00:02]} 52. Kf1 {[%clk 0:00:05]}  Bd8 {[%clk 0:00:02]} 53. Ke2 {[%clk 0:00:05]}  Ke7 {[%clk 0:00:03]} 54. Kd3 {[%clk 0:00:06]}  Rc8 {[%clk 0:00:04]} 55. Re1 {[%clk 0:00:06]}  Bc7 {[%clk 0:00:04]} 56. Re2 {[%clk 0:00:06]}  Ra8 {[%clk 0:00:04]} 57. Qc6 {[%clk 0:00:06]}  Ra7 {[%clk 0:00:04]} 58. Qd7+ {[%clk 0:00:07]}  Kf8 {[%clk 0:00:05]} 59. Qf7# {[%clk 0:00:07]} 1-0


[Site "https://www.chess.com"]